[Event "*** Titled Tuesday Blitz"]
[Site "Chess.com"]
[Date "2020.04.07"]
[Round "9"]
[White "OhanyanEminChess"]
[Black "HiHaruka"]
[Result "1-0"]
[WhiteElo "2551"]
[BlackElo "2277"]
[TimeControl "180+1"]
[EndTime "14:46:17 PDT"]
[Termination "OhanyanEminChess won by resignation"]

1. e4 {[%clk 0:03:00.9]} 1... c5 {[%clk 0:02:57.7]} 2. Nf3 {[%clk 0:03:00.4]}
2... d6 {[%clk 0:02:57.4]} 3. d4 {[%clk 0:02:56.4]} 3... cxd4 {[%clk 0:02:56.2]}
4. Nxd4 {[%clk 0:02:57.3]} 4... Nf6 {[%clk 0:02:54.9]} 5. Nc3 {[%clk 0:02:57.7]}
5... a6 {[%clk 0:02:54.6]} 6. Bc4 {[%clk 0:02:56.8]} 6... e5 {[%clk 0:02:51.9]}
7. Nf5 {[%clk 0:02:54.8]} 7... Bxf5 {[%clk 0:02:32.1]} 8. exf5 {[%clk
0:02:55.7]} 8... Be7 {[%clk 0:02:26.4]} 9. O-O {[%clk 0:02:54.1]} 9... O-O
{[%clk 0:02:25.7]} 10. Bb3 {[%clk 0:02:52.3]} 10... Nc6 {[%clk 0:02:24]} 11. Bg5
{[%clk 0:02:47.6]} 11... Nd4 {[%clk 0:02:23]} 12. Qd3 {[%clk 0:02:35.8]} 12...
Qd7 {[%clk 0:02:09.9]} 13. Rad1 {[%clk 0:02:30.5]} 13... Qxf5 {[%clk 0:01:59.9]}
14. Qxf5 {[%clk 0:02:17]} 14... Nxf5 {[%clk 0:02:00.8]} 15. Rfe1 {[%clk
0:02:15.6]} 15... h6 {[%clk 0:01:55.5]} 16. Bxf6 {[%clk 0:02:06.9]} 16... Bxf6
{[%clk 0:01:51.8]} 17. Nd5 {[%clk 0:02:07.8]} 17... Nd4 {[%clk 0:01:43.9]} 18.
c3 {[%clk 0:02:02.9]} 18... Nxb3 {[%clk 0:01:38.8]} 19. axb3 {[%clk 0:02:03.8]}
19... Rfd8 {[%clk 0:01:38.5]} 20. Rd2 {[%clk 0:02:02.3]} 20... Kf8 {[%clk
0:01:32.6]} 21. Red1 {[%clk 0:02:01.7]} 21... Be7 {[%clk 0:01:30.3]} 22. Nb6
{[%clk 0:02:00.6]} 22... Rab8 {[%clk 0:01:28.8]} 23. Nc4 {[%clk 0:01:46.1]}
23... Rbc8 {[%clk 0:00:38.2]} 24. Nxd6 {[%clk 0:01:43.7]} 24... Bxd6 {[%clk
0:00:39.1]} 25. Rxd6 {[%clk 0:01:43.9]} 25... Ke7 {[%clk 0:00:37.9]} 26. Rxd8
{[%clk 0:01:41.3]} 26... Rxd8 {[%clk 0:00:38.8]} 27. Rxd8 {[%clk 0:01:40.8]}
27... Kxd8 {[%clk 0:00:39.7]} 28. Kf1 {[%clk 0:01:41.4]} 28... Kd7 {[%clk
0:00:37]} 29. Ke2 {[%clk 0:01:40.1]} 29... Kd6 {[%clk 0:00:36]} 30. Kd3 {[%clk
0:01:40.4]} 30... f5 {[%clk 0:00:29.6]} 31. b4 {[%clk 0:01:38.2]} 31... b5
{[%clk 0:00:28.9]} 32. b3 {[%clk 0:01:37.2]} 32... Kd5 {[%clk 0:00:22.9]} 33.
c4+ {[%clk 0:01:37]} 33... bxc4+ {[%clk 0:00:23.8]} 34. bxc4+ {[%clk 0:01:37.3]}
34... Kc6 {[%clk 0:00:22.6]} 35. Ke3 {[%clk 0:01:38.2]} 35... g5 {[%clk
0:00:21.6]} 36. Kd3 {[%clk 0:01:37.8]} 36... Kd6 {[%clk 0:00:20.5]} 37. f3
{[%clk 0:01:38.1]} 37... Kc6 {[%clk 0:00:20.1]} 38. g4 {[%clk 0:01:37.6]} 38...
fxg4 {[%clk 0:00:16.3]} 39. fxg4 {[%clk 0:01:37.5]} 39... Kd6 {[%clk 0:00:14]}
40. Ke4 {[%clk 0:01:37.9]} 40... Ke6 {[%clk 0:00:14]} 41. h3 {[%clk 0:01:38.5]}
41... Kf6 {[%clk 0:00:13.4]} 42. Kd5 {[%clk 0:01:38.2]} 42... h5 {[%clk
0:00:09.3]} 43. gxh5 {[%clk 0:01:36.7]} 43... Kf5 {[%clk 0:00:09.7]} 44. c5
{[%clk 0:01:36.7]} 44... e4 {[%clk 0:00:09.8]} 45. c6 {[%clk 0:01:35.9]} 45...
e3 {[%clk 0:00:10]} 46. c7 {[%clk 0:01:36.8]} 46... e2 {[%clk 0:00:10.3]} 47.
c8=Q+ {[%clk 0:01:37.7]} 47... Kf4 {[%clk 0:00:10.7]} 48. Qe8 {[%clk 0:01:38.4]}
48... Kf3 {[%clk 0:00:10.7]} 49. Qxe2+ {[%clk 0:01:39]} 49... Kxe2 {[%clk
0:00:10.9]} 50. h6 {[%clk 0:01:39.9]} 1-0

[Event "*** Titled Tuesday Blitz"]
[Site "Chess.com"]
[Date "2020.04.07"]
[Round "9"]
[White "meridaandres"]
[Black "TheKingDoctor"]
[Result "1-0"]
[WhiteElo "2270"]
[BlackElo "2097"]
[TimeControl "180+1"]
[EndTime "14:46:19 PDT"]
[Termination "meridaandres won by checkmate"]

1. e4 {[%clk 0:03:00.9]} 1... c6 {[%clk 0:02:58.4]} 2. d4 {[%clk 0:03:00.7]}
2... d5 {[%clk 0:02:58.3]} 3. exd5 {[%clk 0:03:01.6]} 3... cxd5 {[%clk
0:02:56.9]} 4. c4 {[%clk 0:03:02.3]} 4... e6 {[%clk 0:02:51.9]} 5. Nc3 {[%clk
0:03:02.2]} 5... Nf6 {[%clk 0:02:51.1]} 6. Nf3 {[%clk 0:03:00.8]} 6... Be7
{[%clk 0:02:49.8]} 7. cxd5 {[%clk 0:02:59.8]} 7... Nxd5 {[%clk 0:02:48.5]} 8.
Bd3 {[%clk 0:03:00]} 8... O-O {[%clk 0:02:48.4]} 9. O-O {[%clk 0:03:00]} 9... b6
{[%clk 0:02:44]} 10. Re1 {[%clk 0:03:00.9]} 10... Bb7 {[%clk 0:02:43.9]} 11. Rf1
{[%clk 0:03:01.8]} 11... Nd7 {[%clk 0:02:43.4]} 12. Re1 {[%clk 0:02:57.2]} 12...
N7f6 {[%clk 0:02:43.4]} 13. a3 {[%clk 0:02:56.1]} 13... Rc8 {[%clk 0:02:43]} 14.
Ne5 {[%clk 0:02:55.3]} 14... Nxc3 {[%clk 0:02:39.3]} 15. bxc3 {[%clk 0:02:54.4]}
15... Rxc3 {[%clk 0:02:38.7]} 16. Bb2 {[%clk 0:02:52.4]} 16... Rc8 {[%clk
0:02:34.8]} 17. Qd2 {[%clk 0:02:47.1]} 17... Nd5 {[%clk 0:02:19.8]} 18. Rad1
{[%clk 0:02:41.8]} 18... Bg5 {[%clk 0:02:18.3]} 19. Qe2 {[%clk 0:02:37.9]} 19...
Nf4 {[%clk 0:02:14.5]} 20. Qe3 {[%clk 0:02:35]} 20... Nxg2 {[%clk 0:02:12.4]}
21. Qh3 {[%clk 0:02:30.6]} 21... h6 {[%clk 0:02:07.6]} 22. d5 {[%clk 0:02:25]}
22... Nxe1 {[%clk 0:02:04.3]} 23. dxe6 {[%clk 0:02:19.9]} 23... Qd5 {[%clk
0:01:57.6]} 24. exf7+ {[%clk 0:02:14.5]} 24... Rxf7 {[%clk 0:01:49.3]} 25. Bh7+
{[%clk 0:02:04.8]} 25... Kxh7 {[%clk 0:01:48.1]} 26. Rxd5 {[%clk 0:02:03.6]}
26... Bxd5 {[%clk 0:01:40.8]} 27. Qxc8 {[%clk 0:01:45.8]} 27... Nf3+ {[%clk
0:01:34.8]} 28. Nxf3 {[%clk 0:01:42.5]} 28... Bxf3 {[%clk 0:01:35]} 29. Qc2+
{[%clk 0:01:39.5]} 29... Kg8 {[%clk 0:01:17.6]} 30. Be5 {[%clk 0:01:31]} 30...
Kh8 {[%clk 0:00:39.6]} 31. Qb3 {[%clk 0:01:18.9]} 31... Rf5 {[%clk 0:00:38.6]}
32. Qe6 {[%clk 0:01:11.4]} 32... Bg4 {[%clk 0:00:34.4]} 33. h4 {[%clk
0:01:03.8]} 33... Bxh4 {[%clk 0:00:31.2]} 34. Qxh6+ {[%clk 0:01:02.5]} 34... Kg8
{[%clk 0:00:29.1]} 35. Qxg7# {[%clk 0:01:02.7]} 1-0

[Event "*** Titled Tuesday Blitz"]
[Site "Chess.com"]
[Date "2020.04.07"]
[Round "9"]
[White "csati17"]
[Black "DDTerziev04"]
[Result "1-0"]
[WhiteElo "2464"]
[BlackElo "2256"]
[TimeControl "180+1"]
[EndTime "14:46:21 PDT"]
[Termination "csati17 won by resignation"]

1. c4 {[%clk 0:03:00.9]} 1... e5 {[%clk 0:02:57]} 2. g3 {[%clk 0:02:59.9]} 2...
c6 {[%clk 0:02:53.6]} 3. Bg2 {[%clk 0:02:59.3]} 3... d5 {[%clk 0:02:53.6]} 4.
cxd5 {[%clk 0:02:58.8]} 4... cxd5 {[%clk 0:02:54.5]} 5. d4 {[%clk 0:02:57.5]}
5... e4 {[%clk 0:02:52.6]} 6. h4 {[%clk 0:02:56.3]} 6... Nc6 {[%clk 0:02:51]} 7.
Nc3 {[%clk 0:02:54.5]} 7... Nf6 {[%clk 0:02:50.2]} 8. Nh3 {[%clk 0:02:53.4]}
8... Bb4 {[%clk 0:02:36.2]} 9. Bg5 {[%clk 0:02:45.9]} 9... h6 {[%clk 0:02:32.7]}
10. Bxf6 {[%clk 0:02:42.8]} 10... Qxf6 {[%clk 0:02:32.2]} 11. Nf4 {[%clk
0:02:36.4]} 11... Qxd4 {[%clk 0:02:25.2]} 12. Nxd5 {[%clk 0:02:36.2]} 12...
Bxc3+ {[%clk 0:02:15.2]} 13. bxc3 {[%clk 0:01:48.6]} 13... Qe5 {[%clk
0:02:14.2]} 14. O-O {[%clk 0:01:45.1]} 14... O-O {[%clk 0:02:13]} 15. Ne3 {[%clk
0:01:17.1]} 15... Be6 {[%clk 0:02:07.8]} 16. Qb1 {[%clk 0:01:06.2]} 16... f5
{[%clk 0:01:52.5]} 17. Qxb7 {[%clk 0:01:05.9]} 17... Rfc8 {[%clk 0:01:48.7]} 18.
Qa6 {[%clk 0:00:49.6]} 18... Qxc3 {[%clk 0:01:39.4]} 19. Rac1 {[%clk 0:00:46.6]}
19... Qxc1 {[%clk 0:00:29.6]} 20. Rxc1 {[%clk 0:00:45.1]} 20... Nd4 {[%clk
0:00:29.8]} 21. Rd1 {[%clk 0:00:31.1]} 21... Rc6 {[%clk 0:00:20.5]} 22. Qa4
{[%clk 0:00:30.9]} 22... Rd8 {[%clk 0:00:14.7]} 23. Rxd4 {[%clk 0:00:28.6]} 1-0

[Event "*** Titled Tuesday Blitz"]
[Site "Chess.com"]
[Date "2020.04.07"]
[Round "9"]
[White "JiangoFett"]
[Black "UCantHandleDenker"]
[Result "0-1"]
[WhiteElo "2305"]
[BlackElo "2473"]
[TimeControl "180+1"]
[EndTime "14:46:26 PDT"]
[Termination "UCantHandleDenker won by resignation"]

1. d4 {[%clk 0:03:00.9]} 1... Nf6 {[%clk 0:02:59.3]} 2. c4 {[%clk 0:03:01.1]}
2... c5 {[%clk 0:02:58.8]} 3. d5 {[%clk 0:03:01.3]} 3... d6 {[%clk 0:02:58.5]}
4. Nc3 {[%clk 0:03:01.1]} 4... g6 {[%clk 0:02:59.4]} 5. Nf3 {[%clk 0:03:01.2]}
5... Bg7 {[%clk 0:02:59.3]} 6. h3 {[%clk 0:03:00.4]} 6... O-O {[%clk 0:02:59.5]}
7. e4 {[%clk 0:03:00.4]} 7... e6 {[%clk 0:02:59.2]} 8. Be2 {[%clk 0:02:58.8]}
8... exd5 {[%clk 0:02:58.7]} 9. cxd5 {[%clk 0:02:59.7]} 9... a6 {[%clk
0:02:55.2]} 10. a4 {[%clk 0:02:59.5]} 10... Re8 {[%clk 0:02:53.9]} 11. Nd2
{[%clk 0:02:59.5]} 11... Nbd7 {[%clk 0:02:49.2]} 12. O-O {[%clk 0:02:58.1]}
12... Qc7 {[%clk 0:02:47.5]} 13. a5 {[%clk 0:02:57.7]} 13... Rb8 {[%clk
0:02:36.9]} 14. Nc4 {[%clk 0:02:56.3]} 14... Nxe4 {[%clk 0:02:34.3]} 15. Nxe4
{[%clk 0:02:37.1]} 15... Rxe4 {[%clk 0:02:35.2]} 16. Bd3 {[%clk 0:02:26.2]}
16... Re8 {[%clk 0:02:28.1]} 17. Bf4 {[%clk 0:02:19.5]} 17... Ne5 {[%clk
0:02:27.2]} 18. Nxe5 {[%clk 0:02:05]} 18... Bxe5 {[%clk 0:02:26]} 19. Bxe5
{[%clk 0:02:03.7]} 19... Rxe5 {[%clk 0:02:25.3]} 20. Bc2 {[%clk 0:01:45.8]}
20... Bf5 {[%clk 0:02:18]} 21. f4 {[%clk 0:01:38.4]} 21... Bxc2 {[%clk
0:02:17.1]} 22. Qxc2 {[%clk 0:01:37.2]} 22... Rxd5 {[%clk 0:02:16.7]} 23. f5
{[%clk 0:01:37.8]} 23... Re8 {[%clk 0:02:08.3]} 24. Qa4 {[%clk 0:01:07.7]} 24...
Rde5 {[%clk 0:02:03.6]} 25. Qh4 {[%clk 0:01:01.4]} 25... c4 {[%clk 0:01:51.7]}
26. Rf2 {[%clk 0:00:50.4]} 26... Qc5 {[%clk 0:01:44.7]} 27. fxg6 {[%clk
0:00:43]} 27... hxg6 {[%clk 0:01:42.9]} 28. Rf1 {[%clk 0:00:39.3]} 28... Rf5
{[%clk 0:01:41.8]} 29. Kh2 {[%clk 0:00:28.5]} 29... Qe5+ {[%clk 0:01:39.7]} 30.
Kg1 {[%clk 0:00:22.9]} 30... Rxf2 {[%clk 0:01:38.8]} 31. Rxf2 {[%clk 0:00:23.8]}
31... Qe1+ {[%clk 0:01:35.1]} 32. Kh2 {[%clk 0:00:23.9]} 32... Qe5+ {[%clk
0:01:30.5]} 33. Kg1 {[%clk 0:00:23.1]} 33... d5 {[%clk 0:01:23.3]} 34. Qg4
{[%clk 0:00:17]} 34... d4 {[%clk 0:01:19.4]} 35. Qd7 {[%clk 0:00:13.4]} 35...
Rf8 {[%clk 0:01:04.2]} 36. Qxb7 {[%clk 0:00:09.7]} 36... Qe1+ {[%clk 0:00:59.6]}
37. Rf1 {[%clk 0:00:09.4]} 37... Qxa5 {[%clk 0:01:00]} 38. Qd5 {[%clk
0:00:07.2]} 38... Qxd5 {[%clk 0:00:58.9]} 0-1

[Event "*** Titled Tuesday Blitz"]
[Site "Chess.com"]
[Date "2020.04.07"]
[Round "9"]
[White "ftorodent"]
[Black "Chessterra87"]
[Result "1-0"]
[WhiteElo "2607"]
[BlackElo "2342"]
[TimeControl "180+1"]
[EndTime "14:46:28 PDT"]
[Termination "ftorodent won by resignation"]

1. d4 {[%clk 0:03:00.9]} 1... c5 {[%clk 0:02:58.2]} 2. d5 {[%clk 0:03:00.4]}
2... b5 {[%clk 0:02:56.2]} 3. e4 {[%clk 0:02:58]} 3... a6 {[%clk 0:02:55.1]} 4.
a4 {[%clk 0:02:56]} 4... bxa4 {[%clk 0:02:54.8]} 5. Nc3 {[%clk 0:02:53.8]} 5...
d6 {[%clk 0:02:54.3]} 6. Nf3 {[%clk 0:02:50]} 6... g6 {[%clk 0:02:54]} 7. Be2
{[%clk 0:02:43.9]} 7... Bg7 {[%clk 0:02:53.7]} 8. O-O {[%clk 0:02:43.9]} 8...
Nf6 {[%clk 0:02:53.8]} 9. e5 {[%clk 0:02:29.4]} 9... Ng4 {[%clk 0:02:41.5]} 10.
exd6 {[%clk 0:02:24.6]} 10... exd6 {[%clk 0:02:40.1]} 11. Bg5 {[%clk 0:02:21.4]}
11... Qb6 {[%clk 0:02:22]} 12. Nd2 {[%clk 0:02:00.6]} 12... Ne5 {[%clk
0:01:49.2]} 13. f4 {[%clk 0:01:59.6]} 13... Qxb2 {[%clk 0:01:13.3]} 14. Nde4
{[%clk 0:01:56.2]} 14... Ned7 {[%clk 0:01:04.1]} 15. Rb1 {[%clk 0:01:37.6]}
15... Qa3 {[%clk 0:01:01.6]} 16. Nxd6+ {[%clk 0:01:30.8]} 16... Kf8 {[%clk
0:01:01.7]} 17. Nce4 {[%clk 0:01:26]} 17... h6 {[%clk 0:00:38.6]} 18. Bh4 {[%clk
0:01:16.2]} 18... Kg8 {[%clk 0:00:30.4]} 19. Nxc8 {[%clk 0:01:11.9]} 19... Qe3+
{[%clk 0:00:30.1]} 20. Nf2 {[%clk 0:01:11.7]} 20... Bd4 {[%clk 0:00:26.6]} 21.
Kh1 {[%clk 0:01:01]} 21... Qxf4 {[%clk 0:00:24.2]} 22. Ng4 {[%clk 0:00:58.4]}
22... Qc7 {[%clk 0:00:21.4]} 23. Ne7+ {[%clk 0:00:45.5]} 23... Kg7 {[%clk
0:00:21.6]} 24. Bf3 {[%clk 0:00:45.4]} 24... g5 {[%clk 0:00:19.4]} 25. Bg3
{[%clk 0:00:44.3]} 25... Qd8 {[%clk 0:00:18.8]} 26. d6 {[%clk 0:00:44.1]} 26...
Nf6 {[%clk 0:00:16.8]} 27. Nxf6 {[%clk 0:00:42.3]} 27... Bxf6 {[%clk 0:00:17.3]}
28. Bxa8 {[%clk 0:00:42.2]} 28... Nd7 {[%clk 0:00:17.5]} 29. Nf5+ {[%clk
0:00:40]} 29... Kg6 {[%clk 0:00:16.8]} 30. Be4 {[%clk 0:00:39.1]} 1-0

[Event "*** Titled Tuesday Blitz"]
[Site "Chess.com"]
[Date "2020.04.07"]
[Round "9"]
[White "Berant"]
[Black "Grandmaster2B"]
[Result "0-1"]
[WhiteElo "2359"]
[BlackElo "2533"]
[TimeControl "180+1"]
[EndTime "14:46:30 PDT"]
[Termination "Grandmaster2B won by resignation"]

1. e4 {[%clk 0:03:00.9]} 1... c5 {[%clk 0:03:00.1]} 2. Nf3 {[%clk 0:02:57]} 2...
d6 {[%clk 0:03:00.4]} 3. Bb5+ {[%clk 0:02:54.5]} 3... Nd7 {[%clk 0:03:00.4]} 4.
d4 {[%clk 0:02:54.1]} 4... cxd4 {[%clk 0:03:00.3]} 5. Qxd4 {[%clk 0:02:52.5]}
5... a6 {[%clk 0:02:58.4]} 6. Bxd7+ {[%clk 0:02:51.6]} 6... Bxd7 {[%clk
0:02:59.3]} 7. a4 {[%clk 0:02:51.1]} 7... e5 {[%clk 0:02:57.2]} 8. Qd1 {[%clk
0:02:50.8]} 8... Nf6 {[%clk 0:02:58.1]} 9. Qe2 {[%clk 0:02:48.7]} 9... Be7
{[%clk 0:02:56.3]} 10. O-O {[%clk 0:02:47.8]} 10... O-O {[%clk 0:02:56.5]} 11.
c4 {[%clk 0:02:47.7]} 11... Qc7 {[%clk 0:02:53.3]} 12. Nc3 {[%clk 0:02:46.5]}
12... Rfc8 {[%clk 0:02:51.6]} 13. b3 {[%clk 0:02:46.5]} 13... Rab8 {[%clk
0:02:48.8]} 14. Bg5 {[%clk 0:02:43.8]} 14... Be6 {[%clk 0:02:43.3]} 15. Bxf6
{[%clk 0:02:42.2]} 15... Bxf6 {[%clk 0:02:44.2]} 16. Rfd1 {[%clk 0:02:39.9]}
16... Qc5 {[%clk 0:02:41.1]} 17. Nd5 {[%clk 0:02:35.7]} 17... Bd8 {[%clk
0:02:34.9]} 18. Ra2 {[%clk 0:02:19.4]} 18... b5 {[%clk 0:02:32.1]} 19. cxb5
{[%clk 0:02:16]} 19... axb5 {[%clk 0:02:33]} 20. b4 {[%clk 0:02:09.3]} 20... Qc4
{[%clk 0:02:22.8]} 21. Qxc4 {[%clk 0:01:47.1]} 21... Rxc4 {[%clk 0:02:23.7]} 22.
axb5 {[%clk 0:01:32]} 22... Rxe4 {[%clk 0:02:21.7]} 23. b6 {[%clk 0:01:22.3]}
23... Bxb6 {[%clk 0:02:13.8]} 24. Ra6 {[%clk 0:01:12.4]} 24... Bxd5 {[%clk
0:02:11.5]} 25. Rxd5 {[%clk 0:01:11.4]} 25... Rxb4 {[%clk 0:02:10.7]} 26. h4
{[%clk 0:01:08.1]} 26... e4 {[%clk 0:02:05.7]} 27. Ng5 {[%clk 0:00:51.4]} 27...
h6 {[%clk 0:01:49.2]} 28. Nh3 {[%clk 0:00:51.2]} 28... Bc5 {[%clk 0:01:43.9]}
29. Nf4 {[%clk 0:00:43.4]} 29... e3 {[%clk 0:01:39]} 30. Nd3 {[%clk 0:00:41.1]}
30... exf2+ {[%clk 0:01:37.7]} 31. Nxf2 {[%clk 0:00:35.2]} 31... Rb1+ {[%clk
0:01:35.5]} 32. Kh2 {[%clk 0:00:34.5]} 32... Bxf2 {[%clk 0:01:36]} 33. Raxd6
{[%clk 0:00:32.6]} 33... Bxh4 {[%clk 0:01:33.6]} 34. Kh3 {[%clk 0:00:30.8]}
34... Bf6 {[%clk 0:01:31.8]} 35. Kg4 {[%clk 0:00:25.9]} 35... R8b4+ {[%clk
0:01:31.5]} 36. Kh3 {[%clk 0:00:24.5]} 36... Rh1+ {[%clk 0:01:30.5]} 37. Kg3
{[%clk 0:00:24.1]} 37... Rb3+ {[%clk 0:01:28.3]} 38. Kf2 {[%clk 0:00:23.6]}
38... Bh4+ {[%clk 0:01:25.9]} 39. Ke2 {[%clk 0:00:20.7]} 39... Re1+ {[%clk
0:01:24.8]} 40. Kd2 {[%clk 0:00:20]} 40... Rb2+ {[%clk 0:01:24.5]} 41. Kc3
{[%clk 0:00:19.4]} 41... Rxg2 {[%clk 0:01:25]} 42. Rd3 {[%clk 0:00:17.3]} 42...
Bf6+ {[%clk 0:01:24]} 43. Kc4 {[%clk 0:00:15.1]} 43... Rc2+ {[%clk 0:01:23.9]}
44. Kd5 {[%clk 0:00:15.3]} 44... Re5+ {[%clk 0:01:23.6]} 45. Kd4 {[%clk
0:00:13.9]} 45... Re6+ {[%clk 0:01:22.4]} 46. Kd5 {[%clk 0:00:13.5]} 46... Rxd6+
{[%clk 0:01:21.3]} 47. Kxd6 {[%clk 0:00:13.8]} 47... Rc8 {[%clk 0:01:22.2]} 48.
Rg3 {[%clk 0:00:12.4]} 48... Rd8+ {[%clk 0:01:23.1]} 49. Kc7 {[%clk 0:00:12.5]}
49... Be5+ {[%clk 0:01:23.1]} 50. Kxd8 {[%clk 0:00:12.4]} 50... Bxg3 {[%clk
0:01:24]} 51. Ke7 {[%clk 0:00:12.7]} 51... h5 {[%clk 0:01:24.9]} 52. Kd7 {[%clk
0:00:12.2]} 52... h4 {[%clk 0:01:25.8]} 53. Kc6 {[%clk 0:00:13]} 53... h3 {[%clk
0:01:26.7]} 54. Kd5 {[%clk 0:00:13.8]} 54... h2 {[%clk 0:01:27.2]} 55. Ke4
{[%clk 0:00:14.5]} 55... h1=Q+ {[%clk 0:01:28.1]} 56. Kf5 {[%clk 0:00:15.4]}
56... Qf3+ {[%clk 0:01:27.4]} 0-1

[Event "*** Titled Tuesday Blitz"]
[Site "Chess.com"]
[Date "2020.04.07"]
[Round "9"]
[White "Jenia84"]
[Black "PawnEatingZombie"]
[Result "1-0"]
[WhiteElo "2306"]
[BlackElo "2142"]
[TimeControl "180+1"]
[EndTime "14:46:30 PDT"]
[Termination "Jenia84 won on time"]

1. Nf3 {[%clk 0:03:00.9]} 1... d5 {[%clk 0:02:59.3]} 2. g3 {[%clk 0:03:00.9]}
2... e6 {[%clk 0:02:59.3]} 3. Bg2 {[%clk 0:03:01.4]} 3... b5 {[%clk 0:02:58.9]}
4. O-O {[%clk 0:03:01.9]} 4... Bb7 {[%clk 0:02:58.7]} 5. d4 {[%clk 0:03:01.8]}
5... Nf6 {[%clk 0:02:57.5]} 6. c3 {[%clk 0:03:02.3]} 6... c5 {[%clk 0:02:53.6]}
7. Bg5 {[%clk 0:03:02.2]} 7... Nbd7 {[%clk 0:02:50.6]} 8. a4 {[%clk 0:03:01.3]}
8... b4 {[%clk 0:02:47.7]} 9. dxc5 {[%clk 0:03:00.4]} 9... Bxc5 {[%clk
0:02:46.1]} 10. cxb4 {[%clk 0:02:57.6]} 10... Bxb4 {[%clk 0:02:45.4]} 11. a5
{[%clk 0:02:58]} 11... Be7 {[%clk 0:02:11.9]} 12. a6 {[%clk 0:02:55.4]} 12...
Bc6 {[%clk 0:02:06.9]} 13. Nd4 {[%clk 0:02:53.5]} 13... Qb6 {[%clk 0:01:54.2]}
14. Nxc6 {[%clk 0:02:35.6]} 14... Qxc6 {[%clk 0:01:53.3]} 15. Nc3 {[%clk
0:02:32.6]} 15... O-O {[%clk 0:01:51.4]} 16. e4 {[%clk 0:02:28.1]} 16... dxe4
{[%clk 0:01:08.6]} 17. Nxe4 {[%clk 0:02:26]} 17... Qb6 {[%clk 0:01:04.4]} 18.
Nxf6+ {[%clk 0:02:24.8]} 18... Nxf6 {[%clk 0:01:05.3]} 19. Bxa8 {[%clk
0:02:21.5]} 19... Rxa8 {[%clk 0:01:06.2]} 20. Qf3 {[%clk 0:02:17.9]} 20... Rb8
{[%clk 0:00:56.5]} 21. b3 {[%clk 0:02:16.1]} 21... h6 {[%clk 0:00:51.7]} 22. Bf4
{[%clk 0:02:14.9]} 22... Qxb3 {[%clk 0:00:49.8]} 23. Qxb3 {[%clk 0:02:13.5]}
23... Rxb3 {[%clk 0:00:49.7]} 24. Be3 {[%clk 0:02:13.3]} 24... Rxe3 {[%clk
0:00:42.1]} 25. fxe3 {[%clk 0:02:12.7]} 25... Bc5 {[%clk 0:00:42.6]} 26. Kf2
{[%clk 0:02:12]} 26... Ng4+ {[%clk 0:00:40.6]} 27. Ke2 {[%clk 0:02:07.9]} 27...
Nxe3 {[%clk 0:00:38.8]} 28. Rfc1 {[%clk 0:02:06.6]} 28... Bb6 {[%clk 0:00:38.3]}
29. Rc8+ {[%clk 0:02:00.7]} 29... Kh7 {[%clk 0:00:37.1]} 30. Rb1 {[%clk
0:02:00.7]} 30... Nd5 {[%clk 0:00:36.2]} 31. Rxb6 {[%clk 0:01:55.9]} 31... Nxb6
{[%clk 0:00:37.1]} 32. Rc7 {[%clk 0:01:49.9]} 32... Nd5 {[%clk 0:00:29.2]} 33.
Rxa7 {[%clk 0:01:48.9]} 33... Nb4 {[%clk 0:00:22.7]} 34. Ra8 {[%clk 0:01:48.6]}
34... Kg6 {[%clk 0:00:20.8]} 35. a7 {[%clk 0:01:48.4]} 35... Nc6 {[%clk
0:00:21]} 36. Kf2 {[%clk 0:01:41.8]} 36... Kf6 {[%clk 0:00:19.8]} 37. Kg2 {[%clk
0:01:35.5]} 37... h5 {[%clk 0:00:16.3]} 38. h4 {[%clk 0:01:34.5]} 38... g6
{[%clk 0:00:16.4]} 39. Kf2 {[%clk 0:01:33]} 39... Ke5 {[%clk 0:00:14.5]} 40. Ke3
{[%clk 0:01:31.1]} 40... f6 {[%clk 0:00:08.1]} 41. Kf3 {[%clk 0:01:22.5]} 41...
Nd4+ {[%clk 0:00:06.9]} 42. Kg2 {[%clk 0:01:22.1]} 42... Nc6 {[%clk 0:00:07.8]}
43. Rg8 {[%clk 0:01:20.3]} 43... Nxa7 {[%clk 0:00:07.3]} 44. Rxg6 {[%clk
0:01:20.8]} 44... Nc6 {[%clk 0:00:02.3]} 45. Rh6 {[%clk 0:01:21.2]} 45... Nd4
{[%clk 0:00:01.1]} 46. Rxh5+ {[%clk 0:01:21.3]} 46... f5 {[%clk 0:00:01.8]} 47.
Rh8 {[%clk 0:01:19.9]} 1-0

[Event "*** Titled Tuesday Blitz"]
[Site "Chess.com"]
[Date "2020.04.07"]
[Round "9"]
[White "AEMEffi"]
[Black "indfraeng"]
[Result "0-1"]
[WhiteElo "2312"]
[BlackElo "2239"]
[TimeControl "180+1"]
[EndTime "14:46:30 PDT"]
[Termination "indfraeng won by checkmate"]

1. d4 {[%clk 0:03:00.9]} 1... d5 {[%clk 0:02:59.2]} 2. c4 {[%clk 0:03:00.7]}
2... c6 {[%clk 0:02:59.6]} 3. Nc3 {[%clk 0:03:00.6]} 3... Nf6 {[%clk 0:02:59.3]}
4. e3 {[%clk 0:03:00.9]} 4... e6 {[%clk 0:02:55.2]} 5. Nf3 {[%clk 0:03:01]} 5...
Nbd7 {[%clk 0:02:55.3]} 6. Qc2 {[%clk 0:03:01.5]} 6... Bd6 {[%clk 0:02:54]} 7.
b3 {[%clk 0:03:01.9]} 7... O-O {[%clk 0:02:53.1]} 8. Be2 {[%clk 0:03:02.3]} 8...
b6 {[%clk 0:02:53.2]} 9. O-O {[%clk 0:03:02.2]} 9... Bb7 {[%clk 0:02:53.5]} 10.
Bb2 {[%clk 0:03:02.6]} 10... Qe7 {[%clk 0:02:53.9]} 11. Rfe1 {[%clk 0:02:49.5]}
11... Rac8 {[%clk 0:02:50.7]} 12. e4 {[%clk 0:02:41.8]} 12... dxe4 {[%clk
0:02:42.2]} 13. Nxe4 {[%clk 0:02:42.7]} 13... Nxe4 {[%clk 0:02:42.4]} 14. Qxe4
{[%clk 0:02:40.9]} 14... Nf6 {[%clk 0:02:42.4]} 15. Qh4 {[%clk 0:02:34.2]} 15...
c5 {[%clk 0:02:39.5]} 16. d5 {[%clk 0:02:14.3]} 16... h6 {[%clk 0:02:32.6]} 17.
Bd3 {[%clk 0:02:05.3]} 17... Rcd8 {[%clk 0:01:42.4]} 18. Qh3 {[%clk 0:01:36.7]}
18... Qc7 {[%clk 0:01:35.9]} 19. Bxf6 {[%clk 0:01:24]} 19... gxf6 {[%clk
0:01:34]} 20. Qxh6 {[%clk 0:01:23]} 20... f5 {[%clk 0:01:32.4]} 21. Ng5 {[%clk
0:01:17.5]} 21... Rfe8 {[%clk 0:01:20.7]} 22. Qh7+ {[%clk 0:00:50.7]} 22... Kf8
{[%clk 0:01:20.2]} 23. Bxf5 {[%clk 0:00:32.4]} 23... Bxh2+ {[%clk 0:01:12.6]}
24. Kf1 {[%clk 0:00:21.7]} 24... Be5 {[%clk 0:01:11.5]} 25. dxe6 {[%clk
0:00:13.6]} 25... Bxa1 {[%clk 0:00:48.7]} 26. e7+ {[%clk 0:00:10.8]} 26... Rxe7
{[%clk 0:00:46.7]} 27. Qh6+ {[%clk 0:00:08.8]} 27... Ke8 {[%clk 0:00:44.7]} 28.
Rxa1 {[%clk 0:00:08]} 28... Qe5 {[%clk 0:00:43.7]} 29. Bh3 {[%clk 0:00:05.6]}
29... Qxa1# {[%clk 0:00:43.1]} 0-1